bitfinex-derivatives/quotes_ETHF0:USTF0_20250803
["timestamp","ask_amount","ask_price","bid_price","bid_amount"]
[1754201611524,3.7254,3439.0,3438.9,1.8518]
[1754201611724,4.1262,3439.0,3438.9,1.8518]
[1754201611921,3.2078,3439.0,3438.9,1.8518]
[1754201612428,3.7189,3439.0,3438.9,1.8518]
[1754201613229,4.1197,3439.0,3438.9,1.8518]
[1754201613626,0.2128,3439.0,3438.9,1.8518]
[1754201614632,0.5111,3439.1,3439.0,1.8154]
[1754201614820,0.9119,3439.1,3439.0,1.8154]
[1754201615237,1.4515,3439.1,3439.0,1.8154]
[1754201615532,1.7273,3439.1,3439.0,1.8154]
[1754201620333,1.7273,3439.1,3438.7,0.58167]
[1754201620535,0.7524,3438.9,3438.8,1.8154]
[1754201620834,1.7273,3438.9,3438.8,1.8154]
[1754201622231,0.7524,3438.6,3438.5,1.0646]
[1754201622535,1.7273,3438.6,3438.5,1.0646]
[1754201622732,1.7273,3438.6,3438.5,1.8154]
[1754201622935,1.7273,3438.9,3438.8,0.738]
[1754201623136,1.7273,3438.9,3438.8,1.8154]
[1754201624627,1.7273,3438.9,3438.8,1.5154]
[1754201624829,1.7273,3438.9,3438.8,1.8154]
[1754201627136,2.96269926,3438.9,3438.8,1.4888]
[1754201628027,2.96269926,3438.9,3438.8,1.8154]
[1754201629838,2.96269926,3438.9,3438.8,1.4888]
[1754201630037,2.96269926,3438.9,3438.8,1.038]
[1754201630239,0.6991,3439.0,3438.8,1.038]
[1754201630435,3.7189,3439.1,3439.0,1.8154]
[1754201630737,4.1197,3439.1,3439.0,1.8154]
[1754201630937,4.3955,3439.1,3439.0,1.8154]
[1754201631238,1.1877,3439.1,3439.0,1.8154]
[1754201631934,0.5816,3439.2,3439.1,1.0774]
[1754201632238,2.3089,3439.2,3439.1,1.8154]
[1754201633934,0.4008,3439.4,3439.2,0.58159]
[1754201634137,3.2078,3439.5,3439.3,1.8154]
[1754201634331,0.83273232,3439.4,3439.3,1.8154]
[1754201636144,1.34383232,3439.4,3439.3,1.8154]
[1754201636638,1.74463232,3439.4,3439.3,1.8154]
[1754201638134,0.9119,3439.4,3439.3,1.8154]
[1754201638335,1.74501854,3439.4,3439.3,1.8154]
[1754201638841,1.04591854,3439.4,3439.3,1.8154]
[1754201639141,1.34421854,3439.4,3439.3,1.8154]
[1754201639441,1.74501854,3439.4,3439.3,1.8154]
[1754201639642,0.9119,3439.4,3439.3,1.8154]
[1754201641539,1.44819926,3439.4,3439.1,0.5816]
[1754201641743,1.7184,3439.2,3439.1,1.1175]
[1754201641935,1.7184,3439.2,3439.1,1.8555]
[1754201642644,1.7184,3439.4,3439.3,1.8555]
[1754201643340,1.7184,3439.4,3439.3,0.5197]
[1754201643539,2.29997,3439.4,3439.3,0.2999]
[1754201644746,1.7184,3439.0,3438.9,2.43714]
[1754201645633,0.5348,3439.0,3438.9,2.43714]
[1754201645841,5.74474926,3439.5,3439.4,0.738]
[1754201646146,6.57776503,3439.5,3439.4,1.8555]
[1754201646338,0.2077,3438.7,3438.6,1.8555]
[1754201646545,0.3216,3438.7,3438.6,1.8555]
[1754201647044,0.9357,3438.7,3438.6,1.8555]
[1754201647242,1.2116,3438.7,3438.6,1.8555]
[1754201647546,1.7184,3438.7,3438.6,1.8555]
[1754201647844,3.78942,3439.1,3438.6,2.43719]
[1754201648047,1.4425,3439.0,3438.9,0.738]
[1754201648350,1.7184,3439.0,3438.9,1.8555]
[1754201655749,1.62331,3438.6,3438.5,1.8555]
[1754201655947,1.25851,3438.5,3438.4,0.2999]
[1754201656252,2.30011,3438.5,3438.4,0.7941]
[1754201657250,0.58177,3438.2,3438.0,3.2078]
[1754201657553,1.7184,3438.1,3438.0,5.0633]
[1754201658250,1.0416,3438.1,3438.0,5.0633]
[1754201659755,0.5348,3438.1,3438.0,4.5581]
[1754201659949,1.0184,3438.1,3438.0,5.0633]
[1754201660154,0.7425,3438.1,3438.0,5.0633]
[1754201660655,1.0416,3438.1,3438.0,5.0633]
[1754201660856,1.4425,3438.1,3438.0,5.0633]
[1754201661156,0.5348,3438.1,3438.0,5.0633]
[1754201662057,0.79493,3438.4,3438.3,0.738]
[1754201662259,1.79333,3438.4,3438.3,1.8555]
[1754201662449,2.30013,3438.4,3438.3,1.8555]
[1754201662955,2.30013,3438.4,3438.3,1.5321]
[1754201663356,2.30013,3438.4,3438.3,1.8555]
[1754201664961,2.02423,3438.4,3438.3,1.8555]
[1754201665151,2.30013,3438.4,3438.3,1.8555]
[1754201666757,2.30013,3438.4,3438.0,3.5077]
[1754201666960,1.11656,3438.2,3438.1,1.8555]
[1754201667158,1.51756,3438.2,3438.1,1.8555]
[1754201667760,0.9358,3438.2,3438.1,1.8555]
[1754201668061,0.5348,3438.2,3438.1,1.8555]
[1754201668260,0.2132,3438.2,3438.1,1.8555]
[1754201668460,0.58175,3438.3,3438.1,1.8555]
[1754201668655,0.58175,3438.3,3438.1,0.738]
[1754201668854,0.79495,3438.3,3438.2,1.3613]
[1754201669158,1.30175,3438.3,3438.2,1.8555]
[1754201669362,2.30025,3438.3,3438.2,1.8555]
[1754201672260,0.58178,3438.1,3438.0,0.7058]
[1754201672463,1.09328,3438.1,3438.0,1.7972]
[1754201672760,1.49428,3438.1,3438.0,1.7972]
[1754201672952,1.77018,3438.1,3438.0,1.7972]
[1754201673156,1.09328,3438.1,3438.0,1.0291]
[1754201673357,2.28638,3438.1,3438.0,1.7972]
[1754201676859,4.81725,3438.3,3438.2,0.7058]
[1754201677065,5.49415,3438.3,3438.2,1.7972]
[1754201678870,5.49415,3438.3,3438.2,1.4955]
[1754201679570,5.49415,3438.3,3438.0,0.3017]
[1754201679764,1.55796,3438.2,3438.1,0.3233]
[1754201680069,3.52175926,3438.2,3438.1,1.0291]
[1754201681065,2.28636,3438.2,3438.1,1.7972]
[1754201683066,3.52175926,3438.2,3438.1,1.7972]
[1754201685563,3.52175926,3438.2,3438.1,1.5937]
[1754201685764,3.52175926,3438.2,3438.1,1.7972]
[1754201686276,2.28636,3438.2,3438.1,1.7972]
[1754201686776,2.28636,3438.2,3438.1,1.4984]
[1754201686966,4.44319926,3438.3,3437.6,5.005]
[1754201686967,0.2122,3437.7,3437.6,5.005]
[1754201687575,0.9125,3437.7,3437.6,5.005]
[1754201687778,1.7046,3437.7,3437.6,1.7972]
[1754201688974,1.7046,3437.7,3437.6,1.4955]
[1754201689576,0.7284,3437.5,3437.4,1.4739]
[1754201689772,0.58185,3437.7,3437.4,0.7058]
[1754201689972,0.58184,3437.8,3437.7,0.7058]
[1754201690172,1.49434,3437.8,3437.7,1.7972]
[1754201690373,0.401,3438.6,3437.9,0.7897]
[1754201690580,1.0077,3437.9,3437.8,1.0885]
[1754201690881,1.7046,3437.9,3437.8,1.7972]
[1754201691380,0.5115,3437.9,3437.8,1.7972]
[1754201691677,0.98279,3438.1,3437.8,0.7058]
[1754201691873,0.9125,3438.1,3438.0,0.7058]
[1754201692084,0.9125,3438.1,3438.0,1.7972]
[1754201692376,1.7046,3438.1,3438.0,1.7972]
[1754201692573,1.03891168,3439.0,3437.5,20.019]
[1754201692574,3.42,3438.7,3438.6,1.7972]
[1754201692771,0.83350207,3438.7,3438.6,1.7972]
[1754201693277,1.55836752,3439.5,3438.6,1.7972]
[1754201693278,0.70851168,3439.6,3439.3,1.28738]
[1754201693476,1.55836752,3440.0,3439.9,0.5023]
[1754201693665,1.55836752,3440.0,3439.9,1.7972]
[1754201693869,1.8009,3440.0,3439.9,1.7972]
[1754201694072,1.8009,3440.0,3439.9,0.2035]
[1754201694484,1.8009,3440.0,3439.9,1.3308]
[1754201694780,0.7284,3440.0,3439.9,1.7972]
[1754201695280,1.8009,3440.0,3439.9,1.7972]
[1754201696478,1.5033,3440.0,3439.9,1.7972]
[1754201696783,1.8009,3440.0,3439.9,1.7972]
[1754201697084,1.8009,3440.0,3439.9,1.3308]
[1754201697283,1.8009,3440.0,3439.9,1.7972]
[1754201697683,3.03629926,3440.0,3439.9,1.7972]
[1754201699182,1.8009,3440.0,3439.9,1.7972]
[1754201699878,0.7284,3439.7,3439.6,1.3308]
[1754201700085,3.03629926,3439.7,3439.6,1.7972]
[1754201702579,0.5431,3439.2,3439.1,0.5368]
[1754201702884,1.8624,3439.2,3439.1,0.9719]
[1754201703086,1.8624,3439.2,3439.1,1.4894]
[1754201703284,1.8624,3439.2,3439.1,1.8094]
[1754201704481,0.7571,3439.2,3439.1,1.8094]
[1754201704883,1.81698926,3439.3,3439.1,1.8094]
[1754201705083,3.2078,3439.7,3439.6,0.7404]
[1754201705283,5.0702,3439.7,3439.6,1.8094]
[1754201706089,5.65172,3439.7,3439.6,1.8094]
[1754201710287,3.2078,3439.7,3439.6,1.8094]
[1754201714191,1.334,3440.0,3439.9,0.7404]
[1754201714390,1.334,3440.0,3439.9,1.8094]
[1754201714590,1.8624,3440.0,3439.9,1.8094]
[1754201716878,1.8624,3439.6,3439.5,1.8094]
[1754201717687,4.44319926,3440.3,3439.5,1.8094]
[1754201717893,2.44382,3440.2,3440.1,0.7404]
[1754201718090,2.44382,3440.2,3440.1,1.8094]
[1754201718287,2.44382,3440.2,3440.1,0.7211]
[1754201718592,2.44382,3440.2,3440.1,0.4233]
[1754201721594,1.33856,3440.0,3439.9,1.069]
[1754201721799,3.67925926,3440.0,3439.9,1.069]
[1754201722093,3.67925926,3440.0,3439.9,1.4923]
[1754201722680,3.67925926,3440.0,3439.9,1.8094]
[1754201723398,2.44386,3440.0,3439.9,1.8094]
[1754201729704,2.44393,3439.6,3439.5,1.8094]
[1754201730703,2.68920926,3439.7,3438.9,0.32]
[1754201730905,1.5474,3439.0,3438.9,1.2919]
[1754201731105,1.8624,3439.0,3438.9,1.5116]
[1754201731404,1.8624,3439.0,3438.9,1.8094]
[1754201735109,1.799,3438.7,3438.6,1.8569]
[1754201737806,2.38059,3439.2,3439.1,1.3623]
[1754201738008,2.38059,3439.2,3439.1,1.8569]
[1754201739503,1.0621,3439.2,3438.4,3.78953]
[1754201739812,1.799,3438.8,3438.7,1.8569]
[1754201740710,2.38059,3439.2,3439.1,0.731]
[1754201741008,2.38059,3439.2,3439.1,1.8569]
[1754201743114,2.38059,3439.2,3439.1,1.0418]
[1754201744316,2.38059,3439.2,3439.1,0.7225]
[1754201745314,2.38059,3439.2,3439.1,0.2102]
[1754201745518,1.31849,3439.2,3438.9,1.1259]
[1754201745707,1.31853,3439.0,3438.9,1.8569]
[1754201745907,1.10776,3438.8,3438.7,1.5364]
[1754201746112,2.38066,3438.8,3438.7,1.5364]
[1754201746714,2.38066,3438.8,3438.7,1.8569]
[1754201750410,0.7369,3438.1,3438.0,23.1568]
[1754201750615,1.3424,3438.1,3438.0,0.4105]
[1754201750914,1.799,3438.1,3438.0,1.8569]
[1754201753516,3.03439926,3438.1,3438.0,1.3446]
[1754201753711,0.7369,3437.8,3437.7,1.5449]
[1754201753910,0.7369,3437.8,3437.7,1.8569]
[1754201754314,2.38083,3437.8,3437.7,1.8569]
[1754201756017,2.38083,3437.8,3437.7,0.2102]
[1754201756516,2.38083,3437.8,3437.7,0.8415]
[1754201756721,2.38083,3437.8,3437.7,1.0418]
[1754201757724,2.38083,3437.8,3437.7,1.5364]
[1754201758023,3.61622926,3437.8,3437.7,1.2244]
[1754201758222,3.61622926,3437.8,3437.7,1.5364]
[1754201758925,3.61622926,3437.8,3437.7,0.4105]
[1754201759118,0.7927,3437.5,3437.4,0.731]
[1754201759323,1.31882,3437.3,3437.2,1.3623]
[1754201759525,1.31882,3437.3,3437.2,1.8569]
[1754201759715,2.38092,3437.3,3437.2,1.8569]
[1754201760027,1.799,3437.3,3437.2,1.8569]
[1754201765224,1.799,3437.3,3437.2,1.043]
[1754201765425,1.799,3437.3,3437.2,1.8105]
[1754201770229,3.2078,3437.8,3437.2,1.8105]
[1754201770230,4.2987,3437.8,3437.2,1.8105]
[1754201770437,0.78495,3437.7,3437.6,1.8477]
[1754201770622,2.40175,3437.7,3437.6,1.8477]
[1754201772729,0.58185,3437.7,3437.6,1.8477]
[1754201773839,0.78605,3437.7,3437.6,1.8477]
[1754201774134,0.2042,3437.7,3437.6,1.8477]
[1754201774333,0.6841,3437.7,3437.6,1.8477]
[1754201774531,0.2042,3437.7,3437.6,1.8477]
[1754201774722,3.2078,3437.8,3437.6,0.75]
[1754201774926,3.2078,3437.8,3437.7,1.8477]
[1754201775531,1.8199,3438.3,3438.2,0.75]
[1754201775837,1.8199,3438.3,3438.2,1.8477]
[1754201777033,1.3168,3438.3,3438.2,1.8477]
[1754201777336,0.5259,3438.3,3438.2,1.8477]
[1754201777728,1.8199,3438.3,3438.2,1.8477]
[1754201779340,0.729,3438.1,3438.0,0.7533]
[1754201779551,3.05529926,3438.1,3438.0,0.4231]
[1754201780234,1.8199,3437.8,3437.7,1.0802]
[1754201780540,1.8199,3437.8,3437.5,1.5175]
[1754201780541,0.729,3437.6,3437.5,1.5175]
[1754201780837,1.8199,3437.6,3437.5,1.8477]
[1754201782437,1.8199,3437.6,3437.5,0.4231]
[1754201783039,1.8199,3437.6,3437.5,1.0547]
[1754201783443,1.8199,3437.6,3437.5,1.8477]
[1754201784342,1.87698,3437.5,3437.4,0.2142]
[1754201784536,2.40178,3437.5,3437.4,0.2142]
[1754201784738,2.40178,3437.5,3437.4,1.5208]
[1754201784938,2.40178,3437.5,3437.4,1.8477]
[1754201785442,1.8199,3437.5,3437.4,1.8477]
[1754201792139,1.5199,3437.5,3437.4,1.8477]
[1754201792451,3.2078,3438.0,3437.9,1.8448]
[1754201792846,3.6686,3438.0,3437.9,1.8448]
[1754201793047,4.2016,3438.0,3437.9,1.8448]
[1754201793345,4.5062,3438.0,3437.9,1.8448]
[1754201793545,4.8053,3438.0,3437.9,1.8448]
[1754201794450,5.0051,3438.0,3437.9,1.8448]
[1754201795748,1.29381,3437.9,3437.8,0.2123]
[1754201795948,2.52920926,3437.9,3437.8,1.5322]
[1754201796449,3.61450926,3437.9,3437.8,1.5322]
[1754201796949,1.7973,3437.9,3437.8,1.8448]
[1754201799749,3.2078,3438.0,3437.8,1.8448]
[1754201799953,3.2078,3438.0,3437.9,1.8448]
[1754201800344,5.0051,3438.0,3437.9,1.8448]
[1754201800545,3.2078,3438.0,3437.9,1.8448]
[1754201801152,4.2016,3438.0,3437.9,1.8448]
[1754201801758,4.5062,3438.0,3437.9,1.8448]
[1754201802051,4.8053,3438.0,3437.9,1.8448]
[1754201803751,5.0051,3438.0,3437.9,1.8448]
[1754201804344,3.2078,3438.0,3437.9,1.8448]
[1754201806052,3.6686,3438.0,3437.9,1.8448]
[1754201806555,3.8762,3438.0,3437.9,1.8448]
[1754201806855,4.2016,3438.0,3437.9,1.8448]
[1754201807453,4.8053,3438.0,3437.9,1.8448]
[1754201807965,5.0051,3438.0,3437.9,1.8448]
[1754201809757,5.5869,3438.0,3437.9,1.8448]
[1754201812358,5.0051,3438.0,3437.9,1.8448]
[1754201813461,0.712,3437.7,3437.6,1.62416]
[1754201813757,1.7973,3437.7,3437.6,1.93676]
[1754201813958,1.7973,3437.7,3437.6,2.42666]
[1754201819446,0.5122,3437.7,3437.6,2.42666]
[1754201821364,1.5975,3437.7,3437.6,2.42666]
[1754201822161,1.7973,3437.7,3437.6,2.42666]
[1754201822865,1.7973,3437.7,3437.6,1.8448]
[1754201823369,1.23539926,3437.9,3437.5,3.2078]
[1754201823370,2.41536,3437.6,3437.5,3.2078]
[1754201823664,2.41536,3437.6,3437.0,0.7799]
[1754201823665,2.41536,3437.6,3437.2,1.68293]
[1754201823870,0.7274,3437.4,3437.1,0.3211]
[1754201824170,1.8335,3437.2,3437.1,1.8185]
[1754201839869,1.5074,3437.2,3437.1,1.8185]
[1754201840076,0.7274,3437.2,3437.1,1.8185]
[1754201840573,1.8335,3437.2,3437.1,1.8185]
[1754201840769,3.2078,3437.8,3437.6,0.4171]
[1754201840770,1.8335,3437.7,3437.6,0.4171]
[1754201840976,1.8335,3437.7,3437.6,1.8185]
[1754201842082,1.5074,3437.7,3437.6,1.8185]
[1754201842471,0.5258,3437.7,3437.6,1.8185]
[1754201842775,0.7274,3437.9,3437.8,1.8185]
[1754201843079,1.8335,3437.9,3437.8,1.8185]
[1754201851468,0.7274,3437.9,3437.6,0.58186]
[1754201851674,1.8128,3437.7,3437.6,1.0276]
[1754201851978,1.8128,3437.7,3437.6,1.495]
[1754201852179,1.8128,3437.7,3437.6,1.7971]
[1754201859685,1.8128,3438.2,3438.1,1.0225]
[1754201859982,1.8128,3438.2,3438.1,1.792]
[1754201865980,1.0859,3438.1,3438.0,1.35609]
[1754201866181,0.7776,3438.5,3438.2,0.58176]
[1754201866385,0.7269,3438.3,3438.2,1.28756]
[1754201866587,0.58169,3438.7,3438.2,1.28756]
[1754201866787,1.8128,3438.6,3438.5,1.28751]
[1754201867082,1.8128,3438.6,3438.5,2.37371]
[1754201867881,1.3517,3439.0,3438.9,0.78464]
[1754201868087,1.3517,3439.0,3438.9,0.4037]
[1754201868088,2.64034704,3439.0,3438.9,0.4037]
[1754201868288,2.64034704,3439.0,3438.9,0.203]
[1754201868484,2.64034704,3439.0,3438.9,0.9823]
[1754201868685,2.64034704,3439.0,3438.9,1.4899]
[1754201868886,2.64034704,3439.0,3438.9,1.792]
[1754201869480,2.64034704,3439.0,3438.9,1.0225]
[1754201869991,2.64034704,3439.0,3438.9,1.4899]
[1754201870187,1.8128,3439.0,3438.9,1.4899]
[1754201871296,1.8128,3439.0,3438.9,1.792]
[1754201878592,0.5156,3439.0,3438.9,1.792]
[1754201878898,1.8128,3439.3,3439.2,1.792]
[1754201879798,1.8128,3439.3,3439.2,1.2794]
[1754201881001,0.58155,3439.5,3439.2,1.08669]
[1754201881203,1.0352,3439.3,3439.2,2.37359]
[1754201881405,1.0352,3439.3,3438.6,3.2078]
[1754201881406,0.5156,3438.8,3438.7,1.4851]
[1754201881604,1.8128,3438.8,3438.7,1.792]
[1754201882499,1.8128,3438.8,3438.7,2.37368]
[1754201883803,1.813,3438.8,3438.7,2.41738]
[1754201886404,0.7124,3439.0,3438.9,1.31784]
[1754201886605,1.4889,3439.0,3438.9,1.31784]
[1754201887109,1.4889,3439.0,3438.9,2.41734]
[1754201887597,1.8007,3439.0,3438.9,2.41734]
[1754201890409,0.7124,3439.3,3439.2,1.31778]
[1754201890615,1.8007,3439.3,3439.2,2.41728]
[1754201890812,1.2798,3439.5,3439.4,2.11476]
[1754201891012,1.8007,3439.5,3439.4,2.41726]
[1754201891922,1.8007,3439.7,3439.6,2.41721]
[1754201896116,5.0085,3440.1,3440.0,1.8357]
[1754201896414,1.8007,3440.1,3440.0,0.7362]
[1754201896809,1.8007,3440.1,3440.0,1.8357]
[1754201900214,0.7124,3440.1,3440.0,1.8357]
[1754201900619,1.8007,3440.1,3440.0,1.8357]
[1754201900806,0.5033,3440.1,3440.0,1.8357]
[1754201901112,0.7765,3440.3,3439.8,3.78929]
[1754201901113,1.8007,3440.3,3440.2,0.7362]
[1754201901320,0.9562,3440.3,3440.2,1.8357]
[1754201901515,3.2078,3441.1,3440.4,0.7362]
[1754201901717,1.5916,3440.6,3440.5,1.8357]
[1754201902014,3.2078,3441.1,3440.8,0.58132]
[1754201902219,5.0085,3441.1,3441.0,1.8357]
[1754201902415,5.0085,3441.1,3440.8,0.58132]
[1754201902416,4.4876,3441.1,3440.8,0.58132]
[1754201902719,5.0085,3441.1,3441.0,1.8357]
[1754201903716,3.9202,3441.1,3441.0,1.8357]
[1754201903919,1.0242,3441.5,3441.4,0.7362]
[1754201904219,1.0242,3441.5,3441.4,1.8357]
[1754201904611,1.0242,3441.5,3440.8,4.44319926]
[1754201904612,0.3236,3441.4,3440.8,3.2078]
[1754201904813,1.8007,3440.5,3440.4,5.0435]
[1754201905922,1.8007,3440.5,3440.4,5.62489]
[1754201906418,1.268,3440.5,3440.4,5.62489]
[1754201906722,1.5916,3440.8,3440.7,2.41704]
[1754201907129,3.2078,3441.6,3441.0,2.10059]
[1754201907130,1.8007,3441.1,3441.0,2.10059]
[1754201907312,1.8007,3441.1,3441.0,2.41699]
[1754201909020,1.1653,3441.1,3441.0,2.41699]
[1754201909221,1.8007,3441.1,3441.0,2.41699]
[1754201909722,1.4889,3441.1,3441.0,2.41699]
[1754201909922,0.5033,3441.1,3441.0,2.41699]
[1754201910630,1.5916,3441.1,3441.0,1.3551]
[1754201910816,1.8007,3441.1,3441.0,1.3551]
[1754201911226,1.8007,3441.1,3441.0,1.8357]
[1754201912027,1.8007,3441.1,3441.0,2.41699]
[1754201914427,5.02439926,3441.6,3441.2,1.33065]
[1754201914428,0.7552,3441.3,3441.2,1.33065]
[1754201914624,1.8234,3441.3,3441.2,1.33065]
[1754201915027,1.8234,3441.3,3441.2,2.44415]
[1754201915524,0.5436,3441.5,3441.4,1.09272]
[1754201915826,1.5436,3442.0,3441.9,0.7494]
[1754201916033,1.0,3442.0,3441.9,1.8629]
[1754201916331,2.0528,3442.0,3441.9,1.8629]
[1754201916627,2.8234,3442.0,3441.9,1.8629]
[1754201918227,2.8234,3442.0,3441.9,0.4243]
[1754201918228,1.0,3442.0,3441.9,0.4243]
[1754201918433,1.0,3442.0,3441.9,1.8629]
[1754201918631,1.0,3442.0,3441.9,3.09829926]
[1754201919029,1.0,3442.0,3441.9,1.8629]
[1754201919337,1.23539926,3443.0,3441.9,1.8629]
[1754201919338,1.3142,3442.5,3442.4,1.33045]
[1754201919634,1.3142,3442.5,3442.4,2.44395]
[1754201919824,3.5054,3442.7,3442.4,2.44395]
[1754201920021,3.5054,3442.7,3442.0,1.23539926]
[1754201920022,4.8196,3442.7,3442.6,1.33042]
[1754201920221,4.8196,3442.7,3442.6,2.44392]
[1754201920426,4.522,3442.7,3442.6,2.44392]
[1754201920737,4.7336,3442.7,3442.6,2.44392]
[1754201921034,5.0312,3442.7,3442.6,2.44392]
[1754201921240,1.0682,3443.1,3442.6,1.33042]
[1754201921428,0.7552,3442.8,3442.7,1.5635]
[1754201921627,3.2078,3443.2,3443.1,1.8629]
[1754201921628,3.963,3443.2,3443.1,1.8629]
[1754201922133,1.8234,3443.2,3443.1,1.8629]
[1754201922334,1.81623926,3443.7,3442.7,3.2078]
[1754201922335,1.6118,3443.3,3443.2,2.44382]
[1754201922633,1.3142,3443.3,3443.2,2.44382]
[1754201922941,1.8234,3443.3,3443.2,1.8629]
[1754201923931,0.981,3443.5,3443.4,0.7494]
[1754201924132,0.6834,3443.5,3443.4,1.8629]
[1754201924334,0.2976,3443.7,3443.4,1.8629]
[1754201924634,1.0616,3443.6,3443.5,1.8629]
[1754201924834,1.8234,3443.6,3443.5,1.8629]
[1754201930634,1.0682,3443.5,3443.1,3.2078]
[1754201930840,1.3592,3443.1,3443.0,0.2121]
[1754201931034,1.8234,3443.1,3443.0,1.8629]
[1754201931733,1.8234,3443.1,3443.0,1.051]
[1754201931939,1.8234,3443.1,3443.0,1.5378]
[1754201932127,1.8234,3443.1,3443.0,1.8629]
[1754201933934,0.4308,3442.8,3442.7,45.0558]
[1754201934141,1.8234,3442.8,3442.7,46.1693]
[1754201936436,1.8234,3442.8,3442.7,66.0003]
[1754201936938,1.8234,3442.8,3442.7,45.0558]
[1754201937135,1.8234,3442.8,3442.7,64.8838]
[1754201937731,1.8234,3442.8,3442.7,45.0558]
[1754201938544,1.8234,3442.8,3442.7,41.848]
[1754201939639,1.8234,3442.8,3442.7,42.9615]
[1754201940243,1.8234,3442.8,3442.7,42.4747]
[1754201940542,0.7552,3442.8,3442.6,20.1324]
[1754201940732,1.8234,3442.7,3442.6,20.6718]
[1754201941135,1.8234,3442.7,3442.6,20.884]
[1754201941440,1.8234,3442.7,3442.6,1.051]
[1754201941636,1.8234,3442.7,3442.6,20.88]
[1754201942342,1.8234,3442.7,3442.6,21.3492]
[1754201943440,1.8234,3442.7,3442.6,21.6533]
[1754201946639,1.33064,3443.1,3443.0,0.7204]
[1754201946847,2.65304048,3443.1,3443.0,1.8361]
[1754201947345,1.8268,3443.1,3443.0,1.8361]
[1754201948442,0.5307,3443.1,3443.0,1.8361]
[1754201948843,0.9778,3443.1,3443.0,1.8361]
[1754201949153,1.8268,3443.1,3443.0,1.8361]
[1754201950446,0.7497,3443.1,3443.0,1.8361]
[1754201950947,1.8268,3443.1,3443.0,1.8361]
[1754201954647,1.3047,3443.1,3443.0,1.8361]
[1754201954846,0.5307,3443.1,3443.0,1.8361]
[1754201955252,1.8268,3443.1,3443.0,1.8361]
[1754201956354,0.7497,3443.1,3443.0,1.8361]
[1754201956548,0.5307,3443.1,3443.0,1.8361]
[1754201956748,1.8268,3443.1,3443.0,1.8361]
[1754201957453,1.5237,3443.1,3442.9,19.828]
[1754201957752,1.8268,3443.1,3443.0,1.532]
[1754201957953,1.8268,3443.1,3443.0,21.358]
[1754201958153,1.8268,3443.1,3443.0,21.6621]
[1754201963654,1.8268,3443.1,3443.0,21.357]
[1754201963855,1.8268,3442.5,3442.4,1.62635]
[1754201964153,1.8268,3442.5,3442.4,21.6611]
[1754201965059,3.2078,3443.1,3442.5,1.1157]
[1754201965252,1.8268,3443.0,3442.9,0.7204]
[1754201965554,1.8268,3443.0,3442.9,20.5454]
[1754201965756,1.8268,3443.0,3442.9,21.6611]
[1754201965953,1.8268,3443.0,3442.9,19.825]
[1754201966454,1.33077,3442.4,3442.2,3.2078]
[1754201966754,1.8268,3442.0,3441.9,0.7379]
[1754201966956,1.8268,3442.0,3441.9,20.8878]
[1754201967455,1.8268,3442.0,3441.9,21.357]
[1754201968354,1.8268,3442.0,3441.9,22.24224]
[1754201971955,5.0439,3442.7,3442.6,0.7316]
[1754201972158,5.0439,3442.7,3442.6,1.8229]
[1754201972656,5.0439,3442.7,3442.4,20.4451]
[1754201972860,1.8361,3442.6,3442.5,0.9177]
[1754201973047,1.3847,3442.6,3442.5,1.8229]
[1754201973754,1.508,3443.0,3442.9,1.8229]
[1754201973959,2.66299155,3443.0,3442.9,1.8229]
[1754201974261,1.8361,3443.0,3442.9,1.8229]
[1754201976656,0.7506,3443.0,3442.9,1.8229]
[1754201976862,0.7506,3443.1,3443.0,1.31255]
[1754201977165,1.8361,3443.1,3443.0,20.5586]
[1754201977454,1.8361,3443.1,3443.0,21.6499]
[1754201987360,3.5358,3443.5,3443.0,19.827]
[1754201987566,1.45176,3444.5,3443.8,1.31242]
[1754201987567,0.5346,3443.9,3443.8,1.31242]
[1754201987762,3.2078,3444.3,3443.8,21.13742]
[1754201987965,2.66302436,3444.2,3444.1,0.7316]
[1754201988275,1.8361,3444.2,3444.1,21.6469]
[1754201989668,1.8361,3444.2,3444.1,20.5556]
[1754201990168,1.8361,3444.2,3444.1,21.1747]
[1754201990664,1.8361,3444.2,3444.1,21.6469]
[1754201991168,1.8361,3444.2,3444.1,20.257]
[1754201993964,0.7506,3444.2,3443.7,0.58083]
[1754201994168,1.8361,3443.8,3443.7,2.40373]
[1754201994365,1.8361,3443.8,3443.7,22.22373]
[1754201994568,0.4514,3444.0,3443.7,22.22373]
[1754201994871,1.3847,3444.0,3443.9,2.40369]
[1754201995270,1.8361,3444.0,3443.9,2.40369]
[1754201998976,1.8361,3444.0,3443.9,1.8229]
[1754202000772,0.7506,3443.3,3443.2,3.9394]
[1754202001079,1.8361,3443.3,3443.2,23.7574]
[1754202001384,1.0855,3443.6,3443.2,23.0258]
[1754202001569,1.8698,3443.3,3443.2,24.8476]
[1754202003680,1.334,3443.3,3443.2,24.8476]
[1754202003871,0.58084,3443.7,3443.2,24.0664]
[1754202004176,0.58084,3443.7,3443.5,1.8432]
[1754202004177,1.8565,3443.6,3443.5,1.8432]
[1754202004376,1.8565,3443.6,3443.5,21.6612]
[1754202005371,1.8565,3443.6,3443.5,21.1763]
[1754202005777,1.8565,3443.6,3443.5,20.5729]
[1754202005978,1.8565,3443.6,3443.5,20.2474]